bitfinex-derivatives/quotes_ETHF0:USTF0_20210111
["timestamp","ask_amount","ask_price","bid_price","bid_amount"]
[1610327160104,5.64389,1229.3,1228.4,10.0]
[1610327160505,1.24672395,1229.2,1228.4,10.0]
[1610327160705,1.24672395,1229.2,1228.5,10.0]
[1610327161505,1.24672395,1229.2,1228.4,10.0]
[1610327161706,1.24672395,1229.2,1228.5,10.0]
[1610327162306,1.24672395,1229.2,1228.4,10.0]
[1610327162507,1.24672395,1229.2,1229.1,4.00959]
[1610327162907,1.24672395,1229.2,1229.1,14.00959]
[1610327163508,1.24672395,1229.2,1229.1,10.0]
[1610327166512,1.24672395,1229.2,1229.1,14.00959]
[1610327167014,1.24672395,1229.2,1229.1,10.0]
[1610327168023,3.10952395,1229.2,1229.1,10.0]
[1610327168221,33.10952395,1229.2,1229.1,10.0]
[1610327169218,3.10952395,1229.2,1229.1,10.0]
[1610327169618,33.10952395,1229.2,1229.1,10.0]
[1610327170017,3.10952395,1229.2,1229.1,10.0]
[1610327174924,33.10952395,1229.2,1229.1,10.0]
[1610327176026,3.10952395,1229.2,1229.1,10.0]
[1610327178927,33.10952395,1229.2,1229.1,10.0]
[1610327180130,3.10952395,1229.2,1229.1,10.0]
[1610327183631,33.10952395,1229.2,1229.1,10.0]
[1610327184631,3.10952395,1229.2,1229.1,10.0]
[1610327185934,33.10952395,1229.2,1229.1,10.0]
[1610327187140,3.10952395,1229.2,1229.1,10.0]
[1610327188042,33.10952395,1229.2,1229.1,10.0]
[1610327189042,3.10952395,1229.2,1229.1,10.0]
[1610327190645,1.24672395,1229.2,1229.1,14.00959]
[1610327192646,5.25617595,1229.4,1229.1,14.00959]
[1610327193146,1.24658595,1229.4,1229.2,10.0]
[1610327193348,1.24658595,1229.4,1229.3,10.0]
[1610327194548,1.24658595,1229.4,1229.3,14.00959]
[1610327195148,1.24658595,1229.4,1229.3,16.50769]
[1610327196650,1.24658595,1229.4,1229.3,12.4981]
[1610327197050,4.00959,1229.8,1229.3,10.0]
[1610327197250,34.00959,1229.8,1229.3,10.0]
[1610327197450,34.00959,1229.8,1229.4,10.0]
[1610327197451,4.00959,1229.8,1229.4,10.0]
[1610327197850,4.00959,1229.8,1229.0,10.0]
[1610327198051,6.32019,1229.8,1229.0,10.0]
[1610327198250,6.32019,1229.8,1229.1,10.0]
[1610327198651,4.00959,1229.2,1228.7,10.0]
[1610327199051,4.00959,1229.2,1228.6,4.00959]
[1610327199252,4.00959,1229.2,1228.7,10.0]
[1610327199651,4.00959,1229.2,1228.8,10.0]
[1610327199852,4.00959,1229.2,1228.7,10.0]
[1610327200253,4.00959,1229.2,1228.9,10.0]
[1610327200454,4.00959,1229.2,1228.3,2.0767]
[1610327200654,32.228,1229.4,1228.8,10.0]
[1610327200854,32.228,1229.4,1228.4,10.0]
[1610327201054,32.228,1229.4,1228.3,2.0767]
[1610327201253,2.228,1229.4,1228.9,10.0]
[1610327201454,1.2468285,1229.3,1228.9,10.0]
[1610327201654,1.2468285,1229.3,1228.4,10.0]
[1610327202054,1.2468285,1229.3,1228.5,10.0]
[1610327202455,1.2468285,1229.3,1228.3,10.0]
[1610327202656,4.00959,1228.7,1228.4,14.00959]
[1610327203057,4.00959,1228.7,1228.5,10.0]
[1610327203457,1.2468285,1229.3,1228.6,10.0]
[1610327204060,1.2468285,1229.3,1228.6,1.722]
[1610327204659,1.2468285,1229.3,1229.1,4.00959]
[1610327205057,1.2468285,1229.3,1229.2,10.0]
[1610327206158,1.2468285,1229.3,1229.2,12.4803]
[1610327207459,1.24622955,1230.0,1229.2,12.4803]
[1610327207859,1.24622955,1230.0,1229.3,10.0]
[1610327208158,1.24622955,1230.0,1229.4,10.0]
[1610327208558,1.24622955,1230.0,1229.2,2.4803]
[1610327208559,1.24622955,1230.0,1229.3,10.0]
[1610327208759,1.24622955,1230.0,1229.7,4.00959]
[1610327209161,1.24622955,1230.0,1229.4,10.0]
[1610327209360,2.95532955,1230.0,1229.4,10.0]
[1610327209559,2.95532955,1230.0,1229.3,10.0]
[1610327209560,30.0,1229.9,1229.3,10.0]
[1610327209962,30.0,1229.9,1229.5,10.0]
[1610327210160,31.24648015,1229.9,1228.9,2.1131]
[1610327210360,31.24648015,1229.9,1229.6,10.0]
[1610327210760,5.56799,1229.7,1229.0,10.0]
[1610327211260,5.56799,1229.7,1229.1,10.0]
[1610327211460,35.56799,1229.7,1229.1,10.0]
[1610327211660,1.24659415,1229.6,1229.1,10.0]
[1610327211862,1.24659415,1229.6,1229.2,10.0]
[1610327212260,1.24659415,1229.6,1229.3,10.0]
[1610327212661,4.00959,1229.4,1229.2,4.00959]
[1610327213061,5.86939,1229.4,1229.3,10.0]
[1610327214466,4.00959,1229.4,1229.3,10.0]
[1610327214671,1.24634472,1229.4,1229.3,14.00959]
[1610327214869,1.24634472,1229.4,1229.3,4.00959]
[1610327215263,1.24634472,1229.4,1229.3,14.00959]
[1610327216063,1.24619214,1230.2,1229.3,14.00959]
[1610327216563,1.24619214,1230.2,1229.4,10.0]
[1610327216763,5.25578214,1230.2,1229.5,10.0]
[1610327217164,5.25578214,1230.2,1229.3,2.2264]
[1610327217165,5.25578214,1230.2,1229.4,10.0]
[1610327217365,1.24610139,1230.1,1229.4,10.0]
[1610327217564,1.24610139,1230.1,1229.6,10.0]
[1610327217764,1.24610139,1230.1,1229.7,10.0]
[1610327218367,1.24610139,1230.1,1229.4,10.0]
[1610327218566,1.24610139,1230.1,1229.5,10.0]
[1610327218765,1.24610139,1230.1,1229.5,14.00959]
[1610327219165,1.24610139,1230.1,1229.5,4.00959]
[1610327219569,1.24610139,1230.1,1229.6,10.0]
[1610327219968,1.24610139,1230.1,1229.5,4.00959]
[1610327220168,1.24610139,1230.1,1229.7,10.0]
[1610327220367,1.246123,1230.2,1229.7,10.0]
[1610327220768,5.255713,1230.2,1229.8,4.00959]
[1610327220967,5.255713,1230.2,1229.6,10.0]
[1610327221168,5.255713,1230.2,1229.4,10.0]
[1610327221368,35.255713,1230.2,1229.4,10.0]
[1610327221768,1.24618266,1230.1,1229.4,10.0]
[1610327222772,4.00959,1229.5,1228.8,71.96279]
[1610327222972,34.00959,1229.5,1228.8,67.9532]
[1610327223172,34.00959,1229.5,1229.4,10.0]
[1610327223373,4.00959,1229.5,1229.4,10.0]
[1610327223772,34.00959,1229.5,1229.4,10.0]
[1610327224471,35.25616457,1229.5,1229.4,10.0]
[1610327224672,5.25616457,1229.5,1229.4,10.0]
[1610327227373,35.25616457,1229.5,1229.4,10.0]
[1610327230076,5.25616457,1229.5,1229.4,10.0]
[1610327230977,1.24657457,1229.5,1229.4,10.0]
[1610327232679,1.24657457,1229.5,1229.4,14.00959]
[1610327232880,1.24605759,1229.8,1229.4,14.00959]
[1610327233080,1.24605759,1229.8,1229.5,10.0]
[1610327233582,1.24605759,1229.8,1229.6,10.0]
[1610327234183,1.24605759,1229.8,1229.5,10.0]
[1610327234584,1.24605759,1229.8,1229.6,10.0]
[1610327234785,1.24605759,1229.8,1229.7,4.00959]
[1610327235485,1.2460458,1229.9,1229.7,10.0]
[1610327235891,1.2460458,1229.9,1229.8,10.0]
[1610327236288,1.2460458,1229.9,1229.1,10.0]
[1610327236689,4.00959,1229.4,1229.2,10.0]
[1610327237090,4.00959,1229.4,1229.1,10.0]
[1610327237291,30.0,1229.3,1229.1,10.0]
[1610327237488,30.0,1229.3,1228.9,48.339]
[1610327237990,30.0,1229.3,1229.0,10.0]
[1610327238190,1.2465247,1229.2,1229.0,10.0]
[1610327238390,1.2465247,1229.2,1229.1,10.0]
[1610327238693,5.2561147,1229.2,1229.1,10.0]
[1610327238895,5.2561147,1229.2,1229.0,10.0]
[1610327239095,5.2561147,1229.2,1228.9,48.339]
[1610327239293,5.2561147,1229.2,1229.1,10.0]
[1610327239494,5.2561147,1229.2,1229.0,10.0]
[1610327239694,5.2561147,1229.2,1228.9,48.339]
[1610327239895,5.2561147,1229.2,1229.0,10.0]
[1610327240294,35.2561147,1229.2,1229.1,10.0]
[1610327240695,35.2561147,1229.2,1229.0,14.00959]
[1610327240895,1.24661726,1229.1,1229.0,14.00959]
[1610327241294,1.24661726,1229.1,1228.9,48.339]
[1610327241895,1.24661726,1229.1,1229.0,10.0]
[1610327242695,1.24661726,1229.1,1229.0,14.00959]
[1610327242896,1.24661726,1229.1,1229.0,10.0]
[1610327245202,31.24661726,1229.1,1229.0,10.0]
[1610327245403,30.0,1229.1,1229.0,10.0]
[1610327246606,31.24663849,1229.1,1229.0,10.0]
[1610327256619,1.24663849,1229.1,1229.0,10.0]
[1610327277349,31.24663849,1229.1,1229.0,10.0]
[1610327278950,32.76883849,1229.1,1229.0,10.0]
[1610327279150,32.76883849,1229.1,1229.0,8.9827]
[1610327279552,32.76883849,1229.1,1229.0,7.0009]
[1610327279954,32.76883849,1229.1,1229.0,6.6942]
[1610327280153,32.76883849,1229.1,1228.9,10.0]
[1610327280554,32.76883849,1229.1,1228.2,61.1232]
[1610327280954,32.76883849,1229.1,1228.3,10.0]
[1610327281454,32.76883849,1229.1,1228.4,10.0]
[1610327281854,1.24765655,1229.0,1227.1,10.0]
[1610327282054,1.24765655,1229.0,1227.0,10.0]
[1610327282255,5.5481,1228.9,1227.0,10.0]
[1610327282454,30.0,1228.8,1227.1,10.0]
[1610327282654,35.5933,1228.8,1227.1,10.0]
[1610327282853,37.5067,1228.8,1227.0,10.0]
[1610327283055,4.00959,1227.2,1227.0,4.00959]
[1610327283254,4.00959,1227.2,1227.1,10.0]
[1610327283456,4.00959,1227.2,1226.4,2.4919]
[1610327283857,4.00959,1227.2,1226.5,10.0]
[1610327284857,1.2484191,1227.1,1226.6,10.0]
[1610327285057,1.2484191,1227.1,1227.0,4.00959]
[1610327285861,1.2484191,1227.1,1227.0,14.00959]
[1610327286563,4.00959,1227.2,1227.0,14.00959]
[1610327286963,1.8724,1227.5,1227.1,10.0]
[1610327287163,4.00959,1227.6,1227.1,10.0]
[1610327287362,4.00959,1227.6,1227.2,10.0]
[1610327287564,5.7999,1228.5,1227.2,10.0]
[1610327287770,5.7999,1228.5,1227.3,10.0]
[1610327288164,30.0,1228.9,1227.2,10.0]
[1610327288768,30.0,1228.9,1227.4,10.0]
[1610327288969,4.00959,1228.1,1227.9,4.00959]
[1610327289768,1.24768392,1228.8,1228.0,10.0]
[1610327289970,1.24768392,1228.8,1228.0,12.3621]
[1610327290168,1.24768392,1228.8,1228.1,10.0]
[1610327290566,1.24763831,1228.9,1228.2,10.0]
[1610327290768,67.6814,1228.8,1228.2,10.0]
[1610327290967,4.00959,1228.3,1228.2,14.00959]
[1610327291168,67.6814,1228.8,1228.2,4.00959]
[1610327291569,67.6814,1228.8,1228.2,14.00959]
[1610327291769,67.6814,1228.8,1228.3,10.0]
[1610327291970,1.24750402,1228.7,1228.3,10.0]
[1610327292171,1.24750402,1228.7,1228.4,10.0]
[1610327292371,1.24750402,1228.7,1228.2,4.00959]
[1610327292569,1.24750402,1228.7,1228.5,10.0]
[1610327292770,1.24750402,1228.7,1228.3,10.0]
[1610327292968,1.24750402,1228.7,1228.5,4.00959]
[1610327293570,67.6814,1228.8,1228.5,4.00959]
[1610327293769,67.6814,1228.8,1228.6,10.0]
[1610327294169,67.6814,1228.8,1228.7,10.0]
[1610327294568,67.6814,1228.8,1228.6,10.0]
[1610327294968,67.6814,1228.8,1228.7,14.00959]
[1610327295569,67.6814,1228.8,1228.7,4.00959]
[1610327295769,67.6814,1228.8,1228.7,14.00959]
[1610327299373,46.8319,1229.7,1228.7,14.00959]
[1610327299575,5.7079,1230.6,1228.7,14.00959]
[1610327299777,5.5472,1231.6,1228.8,10.0]
[1610327300179,53.2387,1231.3,1228.9,76.5227]
[1610327300374,1.24608073,1230.5,1228.9,76.5227]
[1610327300576,2.89658073,1230.5,1228.9,66.5227]
[1610327300976,2.89658073,1230.5,1229.0,10.0]
[1610327301176,32.89658073,1230.5,1229.0,10.0]
[1610327301377,32.89658073,1230.5,1229.1,10.0]
[1610327301778,32.89658073,1230.5,1229.0,2.1336]
[1610327301978,1.24619969,1230.4,1229.1,10.0]
[1610327302380,1.24619969,1230.4,1229.2,10.0]
[1610327302678,1.24619969,1230.4,1229.3,10.0]
[1610327302878,1.24619969,1230.4,1229.3,12.0209]
[1610327303079,4.00959,1230.3,1229.8,4.00959]
[1610327303679,4.00959,1230.3,1229.9,10.0]
[1610327303879,4.00959,1230.3,1229.8,4.00959]
[1610327304079,4.00959,1230.3,1230.0,10.0]
[1610327304479,4.00959,1230.3,1229.9,10.0]
[1610327304881,1.24602087,1230.2,1229.9,10.0]
[1610327307084,1.24602087,1230.2,1230.0,4.00959]
[1610327308185,1.24602087,1230.2,1230.1,10.0]
[1610327308585,1.24602087,1230.2,1230.0,10.0]
[1610327308985,1.24590765,1230.4,1230.1,10.0]
[1610327309185,4.00959,1230.2,1230.1,10.0]
[1610327309385,4.00959,1230.2,1229.7,10.0]
[1610327309585,4.00959,1230.2,1229.6,2.1888]
[1610327309786,4.00959,1230.2,1229.8,10.0]
[1610327309986,4.00959,1230.2,1229.7,10.0]
[1610327310289,1.24599877,1230.1,1229.7,10.0]
[1610327310487,1.24599877,1230.1,1227.6,30.0]
[1610327310688,1.24599877,1230.1,1229.4,10.0]
[1610327310887,1.24599877,1230.1,1229.4,11.771]
[1610327311088,4.00959,1230.0,1229.9,4.00959]
[1610327311289,4.00959,1230.0,1229.5,10.0]
[1610327311689,4.00959,1230.0,1229.9,10.0]
[1610327312090,4.00959,1230.0,1229.6,10.0]
[1610327312289,1.24599877,1230.1,1229.5,10.0]
[1610327312590,1.24599877,1230.1,1229.6,10.0]
[1610327312991,1.24604634,1230.4,1229.7,10.0]
[1610327313191,4.00959,1230.2,1229.8,4.00959]
[1610327313594,4.00959,1230.2,1229.8,14.00959]
[1610327313795,4.00959,1230.2,1229.8,4.00959]
[1610327313994,4.00959,1230.2,1229.9,10.0]
[1610327314397,1.24603068,1230.1,1230.0,10.0]
[1610327314795,1.24603068,1230.1,1229.9,10.0]
[1610327314996,1.24603068,1230.1,1230.0,10.0]
[1610327315398,1.24603068,1230.1,1229.9,10.0]
[1610327316197,1.24603068,1230.1,1230.0,10.0]
[1610327316397,1.24603068,1230.1,1229.8,4.00959]
[1610327316697,1.24603068,1230.1,1229.9,10.0]
[1610327317096,1.24603068,1230.1,1230.0,10.0]
[1610327317296,1.24603068,1230.1,1229.9,10.0]
[1610327317497,1.24603068,1230.1,1230.0,10.0]
[1610327319098,1.24603068,1230.1,1230.0,14.00959]
[1610327319497,1.24603068,1230.1,1230.0,10.0]
[1610327324403,3.27303068,1230.1,1230.0,10.0]
[1610327329913,33.27303068,1230.1,1230.0,10.0]
[1610327332415,33.27303068,1230.1,1230.0,0.1348]
[1610327332614,33.27303068,1230.1,1228.9,63.4483]
[1610327332815,33.27303068,1230.1,1229.7,10.0]
[1610327333215,33.27303068,1230.1,1229.0,10.0]
[1610327333216,4.00959,1229.8,1229.0,10.0]
[1610327333416,30.0,1229.7,1228.9,63.4483]
[1610327333617,30.0,1229.7,1229.1,10.0]
[1610327333819,30.0,1229.7,1229.1,9.7493]
[1610327334017,30.0,1229.7,1229.0,10.0]
[1610327334219,30.0,1229.7,1228.9,63.4483]
[1610327334420,1.24745885,1229.6,1229.1,10.0]
[1610327334821,1.24745885,1229.6,1227.5,1.6153]
[1610327335020,1.24745885,1229.6,1229.2,10.0]
[1610327335220,4.00959,1229.3,1229.2,10.0]
[1610327335420,5.92119,1229.3,1229.1,10.0]
[1610327335620,5.92119,1229.3,1227.8,4.00959]
[1610327335819,5.92119,1229.3,1229.2,10.0]
[1610327336224,5.92119,1229.3,1228.2,2.1068]
[1610327336621,5.92119,1229.3,1228.3,10.0]
[1610327337021,35.92119,1229.3,1228.4,10.0]
[1610327337224,4.00959,1228.5,1228.4,10.0]
[1610327337623,4.00959,1228.5,1228.3,10.0]
[1610327338023,4.00959,1228.5,1228.4,10.0]
[1610327338424,4.00959,1228.5,1228.3,10.0]
[1610327338625,4.00959,1228.5,1227.9,2.1983]
[1610327338826,5.25694032,1228.5,1227.9,2.1983]
[1610327339026,5.25694032,1228.5,1228.4,10.0]
[1610327339227,35.25694032,1228.5,1228.4,10.0]
[1610327339426,35.25694032,1228.5,1228.0,10.0]
[1610327339826,35.25694032,1228.5,1228.1,10.0]
[1610327340227,1.24759214,1228.4,1227.3,57.728]
[1610327340427,1.24759214,1228.4,1227.6,10.0]
[1610327340627,1.24759214,1228.4,1227.5,2.3362]
[1610327341027,1.24759214,1228.4,1227.6,10.0]
[1610327341230,1.24759214,1228.4,1228.3,4.00959]
[1610327341429,1.24759214,1228.4,1227.7,10.0]
[1610327341628,1.24759214,1228.4,1227.6,10.0]
[1610327342029,1.24759214,1228.4,1227.7,10.0]
[1610327342430,1.24759214,1228.4,1227.6,10.0]
[1610327342830,1.24759214,1228.4,1227.7,10.0]
[1610327343230,1.24759214,1228.4,1227.6,10.0]
[1610327343430,1.24759214,1228.4,1227.5,2.3362]
[1610327343431,1.24759214,1228.4,1227.7,10.0]
[1610327343831,1.24759214,1228.4,1227.6,10.0]
[1610327344431,1.24759214,1228.4,1227.7,10.0]
[1610327344832,1.24759214,1228.4,1227.6,10.0]
[1610327345033,1.24759214,1228.4,1227.8,10.0]
[1610327345233,8.1453,1229.7,1227.8,10.0]
[1610327345433,8.1453,1229.7,1227.8,2.3442]
[1610327345633,8.1453,1229.7,1227.9,10.0]
[1610327345834,8.1453,1229.7,1228.0,10.0]
[1610327346234,2.0991,1229.7,1227.9,10.0]
[1610327346435,1.2468061,1229.4,1227.9,10.0]
[1610327346636,1.2468061,1229.4,1228.0,10.0]
[1610327347035,1.2468061,1229.4,1227.9,10.0]
[1610327347236,57.5613061,1229.4,1227.9,10.0]
[1610327347436,59.1714061,1229.4,1228.1,10.0]
[1610327347636,59.1714061,1229.4,1228.1,12.084]
[1610327347836,87.9246,1229.4,1228.1,2.084]
[1610327348237,87.9246,1229.4,1228.2,10.0]
[1610327348641,87.9246,1229.4,1228.3,10.0]
[1610327349241,87.9246,1229.4,1227.8,2.3442]
[1610327349440,1.2475815,1229.3,1228.4,10.0]
[1610327349641,1.2475815,1229.3,1228.2,10.0]
[1610327349841,1.2475815,1229.3,1227.8,2.3442]
[1610327350040,1.2475815,1229.3,1228.5,10.0]
[1610327350241,4.00959,1228.6,1227.9,10.0]
[1610327350441,4.00959,1228.6,1227.8,2.3442]
[1610327350442,30.0,1228.5,1227.8,2.3442]
[1610327350642,30.0,1228.5,1228.0,10.0]
[1610327351042,30.0,1228.5,1227.9,10.0]
[1610327351442,30.0,1228.5,1227.4,57.1414]
[1610327351642,30.0,1228.5,1228.0,10.0]
[1610327352044,1.24793575,1228.4,1227.5,10.0]
[1610327352242,1.24793575,1228.4,1227.4,57.1414]
[1610327352442,1.24793575,1228.4,1227.6,10.0]
[1610327352843,4.00959,1227.7,1227.5,10.0]
[1610327353043,34.00959,1227.7,1227.5,10.0]
[1610327353242,35.54749,1227.7,1227.4,57.1414]
[1610327353644,35.54749,1227.7,1227.6,10.0]
[1610327353842,35.54749,1227.7,1227.5,10.0]
[1610327354245,35.54749,1227.7,1227.6,10.0]
[1610327354646,35.54749,1227.7,1227.5,10.0]
[1610327354847,31.5379,1227.7,1227.6,10.0]
[1610327355045,1.5379,1227.7,1227.6,10.0]
[1610327355245,1.5379,1227.7,1227.5,10.0]
[1610327355446,4.00959,1227.6,1227.5,10.0]
[1610327355646,34.00959,1227.6,1227.4,57.1414]
[1610327355845,34.00959,1227.6,1227.5,10.0]
[1610327356546,42.69259,1227.6,1227.5,10.0]
[1610327356746,34.00959,1227.6,1227.5,10.0]
[1610327357347,30.0,1227.6,1227.5,10.0]
[1610327357748,31.24868801,1227.6,1227.5,10.0]
[1610327357948,35.25827801,1227.6,1227.5,10.0]
[1610327358850,35.25827801,1227.6,1227.5,8.5283]
[1610327359050,35.25827801,1227.6,1227.5,6.375]
[1610327359651,35.25827801,1227.6,1227.4,10.0]
[1610327359851,31.24868801,1227.6,1226.1,10.0]
[1610327360252,31.24868801,1227.6,1227.2,10.0]
[1610327360451,31.24868801,1227.6,1226.0,2.0852]
[1610327360452,4.00959,1227.3,1226.1,10.0]
[1610327360651,5.93479,1227.3,1226.1,10.0]
[1610327360852,5.93479,1227.3,1226.2,10.0]
[1610327361252,5.93479,1227.3,1226.1,10.0]
[1610327361852,5.93479,1227.3,1226.3,10.0]
[1610327362054,5.93479,1227.3,1226.0,2.0852]
[1610327362253,5.93479,1227.3,1226.4,10.0]
[1610327362453,1.9252,1227.3,1226.4,10.0]
[1610327362653,1.9252,1227.3,1226.1,11.9975]
[1610327362856,4.00959,1226.2,1226.1,11.9975]
[1610327363053,4.00959,1226.2,1226.1,1.9975]
[1610327363454,4.00959,1226.2,1226.1,11.9975]
[1610327364557,2.5094,1226.8,1226.1,11.9975]
[1610327364958,2.5094,1226.8,1226.2,10.0]
[1610327365358,2.5094,1226.8,1226.3,10.0]
[1610327365558,2.5094,1226.8,1226.2,10.0]
[1610327365960,2.5094,1226.8,1226.3,10.0]
[1610327366360,2.5094,1226.8,1225.9,10.0]
[1610327366660,2.5094,1226.8,1225.8,1.5125]
[1610327366861,2.5094,1226.8,1226.0,10.0]
[1610327367263,2.5094,1226.8,1225.9,10.0]
[1610327367463,2.5094,1226.8,1226.1,10.0]
[1610327367862,2.5094,1226.8,1225.9,10.0]
[1610327368664,5.6388,1227.1,1225.9,10.0]
[1610327368863,5.6361,1227.2,1225.9,10.0]
[1610327368864,4.00959,1226.2,1225.9,10.0]
[1610327369064,1.5593,1226.8,1225.9,10.0]
[1610327369464,1.5593,1226.8,1226.2,10.0]
[1610327369667,1.5593,1226.8,1226.2,11.7901]
[1610327369865,1.5593,1226.8,1226.2,1.7901]
[1610327370065,1.9252,1227.3,1226.3,10.0]
[1610327370365,6.0384,1228.5,1226.3,10.0]
[1610327370765,6.0384,1228.5,1226.2,1.7901]
[1610327370766,5.9657,1228.4,1226.4,10.0]
[1610327371365,5.9657,1228.4,1226.3,10.0]
[1610327371566,4.00959,1226.9,1226.7,4.00959]
[1610327371766,4.00959,1226.9,1226.4,10.0]
[1610327371966,4.00959,1226.9,1226.3,10.0]
[1610327372365,4.00959,1226.9,1226.4,10.0]
[1610327372767,4.00959,1226.9,1226.3,10.0]
[1610327373268,4.00959,1226.9,1226.4,10.0]
[1610327373468,6.0794,1227.4,1226.4,10.0]
[1610327373868,6.0794,1227.4,1226.5,10.0]
[1610327374068,4.00959,1226.6,1226.5,10.0]
[1610327374268,4.00959,1226.6,1226.3,10.0]
[1610327375569,4.00959,1226.6,1226.5,10.0]
[1610327375768,1.6344,1227.5,1226.3,10.0]
[1610327376370,1.6344,1227.5,1226.5,10.0]
[1610327376570,4.00959,1226.8,1226.5,14.00959]
[1610327376770,4.00959,1226.8,1226.6,10.0]
[1610327376970,4.00959,1226.8,1226.3,10.0]
[1610327377569,4.00959,1226.8,1226.7,10.0]
[1610327377770,4.00959,1226.8,1226.5,1.966]
[1610327378171,4.00959,1226.8,1226.6,10.0]
[1610327378571,1.6344,1227.5,1226.7,10.0]
[1610327378970,4.00959,1226.8,1226.6,10.0]
[1610327379371,4.00959,1226.8,1226.2,1.7901]
[1610327379571,4.00959,1226.8,1226.6,10.0]
[1610327379970,4.00959,1226.8,1226.3,10.0]
[1610327380271,4.00959,1226.8,1225.9,10.0]
[1610327380472,6.52139,1226.8,1225.8,1.5125]
[1610327380672,6.52139,1226.8,1226.4,10.0]
[1610327380974,2.5118,1226.8,1226.4,10.0]
[1610327381173,1.24889095,1226.7,1226.4,10.0]
[1610327381374,1.24889095,1226.7,1225.9,10.0]
[1610327381574,4.00959,1226.0,1225.8,1.5125]
[1610327381974,4.00959,1226.0,1225.9,10.0]
[1610327382377,4.00959,1226.0,1223.8,10.0]
[1610327382574,4.00959,1226.0,1225.5,1.5662]
[1610327382776,4.00959,1226.0,1225.9,10.0]
[1610327382976,4.00959,1226.0,1225.6,10.0]
[1610327383375,4.00959,1226.0,1225.9,10.0]
[1610327383576,1.8179,1226.1,1225.3,10.0]
[1610327383976,1.8179,1226.1,1226.0,10.0]
[1610327384376,1.8179,1226.1,1226.0,6.4654]
[1610327384977,1.8179,1226.1,1226.0,4.634]
[1610327385476,3.06796835,1226.1,1226.0,4.634]
[1610327385977,7.07755835,1226.1,1226.0,4.634]
[1610327389078,37.07755835,1226.1,1224.2,1.5216]
[1610327389278,37.07755835,1226.1,1222.7,3.405]
[1610327389479,5.7941,1226.0,1224.6,10.0]
[1610327389678,7.4203,1226.0,1224.3,10.0]
[1610327389878,13.5189,1226.0,1222.7,3.405]
[1610327390078,13.14320278,1226.0,1224.7,10.0]
[1610327390282,13.14320278,1226.0,1224.4,10.0]
[1610327390678,13.14320278,1226.0,1224.0,6.12789]
[1610327390679,13.14320278,1226.0,1224.8,10.0]
[1610327390878,13.14320278,1226.0,1224.0,6.12789]
[1610327391480,1.25038914,1225.9,1224.1,10.0]
[1610327391680,1.25038914,1225.9,1224.2,10.0]
[1610327391879,1.25038914,1225.9,1224.0,6.12789]
[1610327392080,4.00959,1225.0,1224.8,4.00959]
[1610327392479,4.00959,1225.0,1224.9,10.0]
[1610327392682,2.2157,1225.8,1224.9,10.0]
[1610327393079,2.2157,1225.8,1224.8,4.00959]
[1610327393279,2.2157,1225.8,1225.0,10.0]
[1610327393681,2.2157,1225.8,1224.9,10.0]
[1610327394080,4.00959,1225.0,1224.3,2.0869]
[1610327394479,4.00959,1225.0,1224.4,10.0]
[1610327394879,4.00959,1225.0,1224.5,10.0]
[1610327395482,4.00959,1225.0,1224.4,10.0]
[1610327395881,4.00959,1225.0,1224.1,10.0]
[1610327396081,4.00959,1224.2,1224.1,10.0]
[1610327396280,6.23959,1224.2,1223.6,55.0573]
[1610327396680,6.23959,1224.2,1224.1,10.0]
[1610327406895,2.23,1224.2,1224.1,10.0]
[1610327407089,50.3962,1224.9,1224.1,10.0]
[1610327407496,50.3962,1224.9,1224.2,10.0]
[1610327407887,50.3962,1224.9,1224.1,1.8941]
[1610327408292,50.3962,1224.9,1224.8,4.00959]
[1610327408491,50.3962,1224.9,1224.2,10.0]
[1610327408893,50.3962,1224.9,1224.8,10.0]
[1610327409290,50.3962,1224.9,1224.4,2.0182]
[1610327409791,50.3962,1224.9,1224.5,10.0]
[1610327410192,50.3962,1224.9,1224.8,4.00959]
[1610327410392,50.3962,1224.9,1224.8,5.73199]
[1610327410593,50.3962,1224.9,1224.8,15.73199]
[1610327411094,4.00959,1225.7,1224.8,15.73199]
[1610327411293,5.9691,1226.8,1224.9,10.0]
[1610327411493,5.9691,1226.8,1224.8,5.73199]
[1610327411893,7.7279,1226.8,1225.0,10.0]
[1610327412093,1.24983623,1226.0,1225.0,10.0]
[1610327412295,1.24983623,1226.0,1225.9,4.00959]
[1610327412894,1.24983623,1226.0,1225.9,14.00959]
[1610327413494,1.24961091,1226.3,1225.9,14.00959]
[1610327414195,1.24961091,1226.3,1226.2,4.00959]
[1610327414695,1.24961091,1226.3,1226.2,10.0]
[1610327415095,1.24961091,1226.3,1225.4,2.4591]
[1610327415295,1.24961091,1226.3,1225.6,10.0]
[1610327415694,1.24961091,1226.3,1225.4,2.4591]
[1610327415895,1.24961091,1226.3,1225.7,10.0]
[1610327416295,1.24961091,1226.3,1226.2,4.00959]
[1610327416496,2.0177,1226.5,1226.2,4.00959]
[1610327416694,2.0177,1226.5,1226.2,14.00959]
[1610327416896,2.0177,1226.5,1226.2,4.00959]
[1610327417296,4.00959,1226.7,1226.3,10.0]